bitfinex-derivatives/quotes_BNBF0:USTF0_20250710
["timestamp","ask_amount","ask_price","bid_price","bid_amount"]
[1752180477598,1.65979097,676.53,676.11,2.206]
[1752180478202,1.65979097,676.54,676.11,2.206]
[1752180478499,1.65979097,676.53,676.11,2.206]
[1752180478698,1.65979097,676.54,676.11,2.206]
[1752180479301,1.65979097,676.53,676.11,2.206]
[1752180479704,1.65979097,676.54,676.11,2.206]
[1752180481903,1.65979097,676.53,676.11,2.206]
[1752180482301,1.65979097,676.58,676.11,2.206]
[1752180482508,1.65979097,676.61,676.11,2.206]
[1752180483402,1.65979097,676.59,676.11,3.86334643]
[1752180483808,1.65979097,676.58,676.12,1.65734643]
[1752180484108,1.65979097,676.59,676.13,1.65734643]
[1752180484301,1.65979097,676.6,676.12,1.65734643]
[1752180485207,1.65979097,676.6,676.13,1.65734643]
[1752180485504,1.65979097,676.6,676.12,1.65734643]
[1752180486107,1.65979097,676.61,676.11,3.86334643]
[1752180486308,1.65979097,676.62,676.11,2.206]
[1752180487108,1.65979097,676.63,676.11,2.206]
[1752180489309,1.65979097,676.62,676.11,2.206]
[1752180492411,1.65979097,676.62,676.12,1.65734643]
[1752180493206,1.65979097,676.62,676.11,3.86334643]
[1752180494212,1.65979097,676.63,676.11,3.86334643]
[1752180500420,1.65979097,676.63,676.11,2.206]
[1752180500623,1.65979097,676.63,676.1,1.91451842]
[1752180502722,1.65979097,676.63,676.11,1.65734643]
[1752180503322,1.65979097,676.63,676.12,1.616]
[1752180504325,1.65979097,676.62,676.12,1.616]
[1752180504524,1.65979097,676.64,676.12,1.616]
[1752180511341,1.65979097,676.65,676.12,1.616]
[1752180511543,1.65979097,676.63,676.12,1.616]
[1752180511838,3.31990788,676.9,676.12,1.616]
[1752180511839,1.65979097,676.65,676.12,3.27334643]
[1752180512741,1.65979097,676.65,676.12,1.616]
[1752180513041,1.65979097,676.64,676.13,1.65734643]
[1752180513438,1.65979097,676.65,676.12,3.27334643]
[1752180514243,1.65979097,676.65,676.12,1.616]
[1752180515441,1.65979097,676.66,676.12,1.616]
[1752180517342,1.65979097,676.65,676.12,1.616]
[1752180517546,1.65979097,676.66,676.12,1.616]
[1752180517744,1.65979097,676.64,676.12,3.27334643]
[1752180517943,1.65979097,676.65,676.12,3.27334643]
[1752180518848,1.65979097,676.66,676.12,1.616]
[1752180519049,1.65979097,676.65,676.12,1.616]
[1752180519449,1.65979097,676.66,676.12,1.616]
[1752180519949,1.65979097,676.65,676.12,1.616]
[1752180520745,1.65979097,676.65,676.12,3.27334643]
[1752180521150,1.65979097,676.64,676.12,3.27334643]
[1752180521447,1.65979097,676.65,676.12,3.27334643]
[1752180521647,1.65979097,676.64,676.13,1.65734643]
[1752180523449,1.65979097,676.65,676.13,1.65734643]
[1752180523648,1.65979097,676.65,676.12,3.27334643]
[1752180523947,1.65979097,676.65,676.13,1.65734643]
[1752180524145,1.65979097,676.64,676.13,1.65734643]
[1752180524551,1.65979097,676.65,676.13,1.65734643]
[1752180524750,0.2571986,677.01,676.13,1.65734643]
[1752180524751,1.65979097,676.64,676.13,1.65734643]
[1752180525251,1.65979097,676.68,676.18,1.65734643]
[1752180525647,1.65979097,676.69,676.18,1.65734643]
[1752180526453,1.65979097,676.69,676.17,1.65734643]
[1752180526953,1.65979097,676.69,676.18,1.65734643]
[1752180527753,1.65979097,676.68,676.18,1.65734643]
[1752180528253,1.65979097,676.68,676.17,1.65734643]
[1752180528450,1.65979097,676.69,676.16,1.65734643]
[1752180530956,1.65979097,676.69,676.17,1.765]
[1752180533256,1.65979097,676.69,676.17,3.42234643]
[1752180533653,1.65979097,676.68,676.17,3.42234643]
[1752180535154,1.65979097,676.68,676.18,1.65734643]
[1752180536554,1.65979097,676.67,676.18,1.65734643]
[1752180536854,1.65979097,676.68,676.18,1.65734643]
[1752180537255,1.65979097,676.67,676.18,1.65734643]
[1752180537759,1.65979097,676.67,676.19,1.65734643]
[1752180537959,1.65979097,676.67,676.18,1.65734643]
[1752180538160,1.65979097,676.67,676.19,1.65734643]
[1752180538557,1.65979097,676.66,676.21,1.65734643]
[1752180539355,1.65979097,676.65,676.21,1.65734643]
[1752180541257,1.65979097,676.65,676.22,1.65734643]
[1752180541959,1.65979097,676.66,676.2,1.65734643]
[1752180542565,1.65979097,676.66,676.19,1.65734643]
[1752180542759,1.65979097,676.67,676.19,1.65734643]
[1752180543061,1.65979097,676.66,676.2,1.65734643]
[1752180543565,1.65979097,676.66,676.19,1.65734643]
[1752180544467,1.65979097,676.67,676.19,1.65734643]
[1752180544763,1.65979097,676.67,676.17,1.765]
[1752180544764,1.65979097,676.65,676.21,1.65734643]
[1752180545264,1.65979097,676.65,676.2,1.65734643]
[1752180545462,1.65979097,676.66,676.2,1.65734643]
[1752180547464,1.65979097,676.66,676.19,1.65734643]
[1752180549362,1.65979097,676.67,676.19,1.65734643]
[1752180549666,1.65979097,676.66,676.19,1.65734643]
[1752180551266,1.65979097,676.67,676.18,1.65734643]
[1752180551464,1.65979097,676.67,676.19,1.65734643]
[1752180552065,1.65979097,676.66,676.19,1.65734643]
[1752180552369,1.65979097,676.67,676.19,1.65734643]
[1752180553571,1.65979097,676.66,676.19,1.65734643]
[1752180556875,1.65979097,676.67,676.18,1.65734643]
[1752180557276,1.65979097,676.68,676.17,1.65734643]
[1752180557974,1.65979097,676.68,676.18,1.869]
[1752180559174,1.65979097,676.67,676.18,1.869]
[1752180562081,1.65979097,676.67,676.18,3.52634643]
[1752180564483,1.65979097,676.76,676.18,1.869]
[1752180566285,1.65979097,676.75,676.18,1.869]
[1752180568486,1.65979097,676.78,676.18,1.869]
[1752180574188,1.65979097,676.72,676.18,1.869]
[1752180574589,2.20656748,676.9,676.18,1.869]
[1752180574590,1.65979097,676.73,676.18,1.869]
[1752180575189,1.65979097,676.72,676.18,1.869]
[1752180575986,1.65979097,676.73,676.18,1.869]
[1752180576790,1.65979097,676.7,676.2,1.65734643]
[1752180578887,1.65979097,676.68,676.22,1.65734643]
[1752180580192,1.65979097,676.68,676.23,1.65734643]
[1752180581492,1.65979097,676.68,676.22,1.65734643]
[1752180582092,1.65979097,676.68,676.23,1.65734643]
[1752180584195,1.65979097,676.67,676.23,1.65734643]
[1752180585191,1.65979097,676.67,676.24,1.65734643]
[1752180585796,1.65979097,676.66,676.25,1.65734643]
[1752180586698,1.65979097,676.66,676.26,1.65734643]
[1752180587198,1.65979097,676.66,676.25,1.65734643]
[1752180588896,1.65979097,676.65,676.26,1.65734643]
[1752180589696,1.65979097,676.65,676.27,1.65734643]
[1752180590500,1.65979097,676.65,676.26,1.65734643]
[1752180591296,1.65979097,676.65,676.27,1.65734643]
[1752180593503,1.65979097,676.65,676.26,1.65734643]
[1752180593904,1.65979097,676.69,676.21,1.65734643]
[1752180594600,1.65979097,676.73,676.18,1.869]
[1752180595204,1.65979097,676.71,676.18,1.869]
[1752180596904,1.65979097,676.69,676.18,3.52634643]
[1752180597706,1.65979097,676.7,676.18,3.52634643]
[1752180598101,1.65979097,676.69,676.18,3.52634643]
[1752180598404,1.65979097,676.7,676.18,3.52634643]
[1752180598602,1.65979097,676.7,676.18,1.869]
[1752180598806,1.65979097,676.52,676.18,1.869]
[1752180599204,1.65979097,676.54,676.18,1.869]
[1752180599706,1.65979097,676.53,676.18,1.869]
[1752180600805,1.65979097,676.52,676.18,1.869]
[1752180601208,1.65979097,676.5,676.18,1.869]
[1752180601607,1.65979097,676.51,676.18,1.869]
[1752180602212,0.25717865,677.09,676.18,1.869]
[1752180602213,1.65979097,676.52,676.18,1.869]
[1752180603209,1.65979097,676.53,676.18,1.869]
[1752180604107,1.65979097,676.52,676.18,1.869]
[1752180604606,1.65979097,676.51,676.18,1.869]
[1752180605308,1.65979097,676.52,676.18,1.869]
[1752180606112,1.65979097,676.51,676.18,1.869]
[1752180607113,1.65979097,676.52,676.18,1.869]
[1752180608210,1.65979097,676.53,676.18,1.869]
[1752180609313,1.65979097,676.56,676.18,1.869]
[1752180610213,1.65979097,676.47,676.18,1.869]
[1752180611018,1.65979097,676.44,676.18,1.869]
[1752180611219,1.65979097,676.45,676.18,1.869]
[1752180611719,1.65979097,676.32,676.18,1.869]
[1752180611918,0.25717865,677.09,676.18,1.869]
[1752180611919,1.65979097,676.31,676.18,1.869]
[1752180612219,1.65979097,676.33,675.86,0.25728322]
[1752180612514,1.65979097,676.34,675.86,0.25728322]
[1752180612718,1.65979097,676.33,675.59,1.65734643]
[1752180612920,1.65979097,676.33,675.7,0.25739074]
[1752180613119,1.65979097,676.35,675.7,0.25739074]
[1752180614119,1.65979097,676.36,675.7,0.25739074]
[1752180614419,1.65979097,676.37,675.7,0.25739074]
[1752180614816,1.65979097,676.35,675.71,1.786]
[1752180615116,1.65979097,676.37,675.71,1.786]
[1752180615315,1.65979097,676.29,675.71,1.786]
[1752180615715,1.65979097,676.3,675.71,1.786]
[1752180616118,1.65979097,676.32,675.71,1.786]
[1752180616718,1.65979097,676.31,675.71,1.786]
[1752180617120,1.65979097,676.32,675.71,1.786]
[1752180618216,1.65979097,676.42,675.71,1.786]
[1752180619120,1.65979097,676.44,675.71,1.786]
[1752180619320,1.65979097,676.43,675.71,1.786]
[1752180620117,1.65979097,676.44,675.71,1.786]
[1752180621221,1.65979097,676.45,675.71,1.786]
[1752180622325,1.65979097,676.46,675.71,1.786]
[1752180623327,1.65979097,676.47,675.71,1.786]
[1752180624327,1.65979097,676.48,675.71,1.786]
[1752180624624,1.65979097,676.44,675.71,1.786]
[1752180625223,1.65979097,676.45,675.71,1.786]
[1752180627123,1.65979097,676.46,675.71,1.786]
[1752180627325,1.65979097,676.47,675.71,1.786]
[1752180628022,1.65979097,676.46,675.71,1.786]
[1752180628226,1.65979097,676.4,675.71,1.786]
[1752180629128,1.65979097,676.41,675.71,1.786]
[1752180630529,1.65979097,676.42,675.71,1.786]
[1752180630729,1.65979097,676.41,675.71,1.786]
[1752180631130,1.65979097,676.42,675.71,1.786]
[1752180632130,1.65979097,676.43,675.71,1.786]
[1752180632329,1.65979097,676.42,675.71,1.786]
[1752180635433,1.65979097,676.39,675.71,1.786]
[1752180636333,1.65979097,676.4,675.71,1.786]
[1752180639436,1.65979097,676.39,675.71,1.786]
[1752180640136,1.65979097,676.4,675.71,1.786]
[1752180640337,1.65979097,676.39,675.71,1.786]
[1752180640539,1.65979097,676.41,675.71,1.786]
[1752180642340,1.65979097,676.4,675.71,1.786]
[1752180644336,1.65979097,676.39,675.71,1.786]
[1752180644838,1.65979097,676.4,675.71,1.786]
[1752180645038,1.65979097,676.39,675.71,1.786]
[1752180646343,1.65979097,676.38,675.71,1.786]
[1752180647340,1.65979097,676.37,675.71,1.786]
[1752180649242,0.25717865,677.09,675.71,1.786]
[1752180649243,1.65979097,676.36,675.71,1.786]
[1752180650342,1.65979097,676.35,675.71,1.786]
[1752180650544,1.65979097,676.33,675.71,1.786]
[1752180651246,1.65979097,676.32,675.71,1.786]
[1752180652343,1.65979097,676.31,675.71,1.786]
[1752180653246,1.65979097,676.3,675.71,1.786]
[1752180653442,1.65979097,676.31,675.71,1.786]
[1752180654343,1.65979097,676.3,675.71,1.786]
[1752180655246,1.65979097,676.28,675.71,1.786]
[1752180655645,1.65979097,676.29,675.71,1.786]
[1752180655947,1.65979097,676.3,675.71,1.786]
[1752180656143,1.65979097,676.31,675.71,1.786]
[1752180656345,1.65979097,676.29,675.71,1.786]
[1752180656548,1.65979097,676.32,675.71,1.786]
[1752180656749,1.65979097,676.22,675.71,1.786]
[1752180657147,1.65979097,676.16,675.71,1.786]
[1752180657346,1.65979097,676.21,675.71,1.786]
[1752180658249,1.65979097,676.19,675.71,1.786]
[1752180659351,1.65979097,676.18,675.71,1.786]
[1752180662155,1.65979097,676.17,675.71,1.786]
[1752180663156,1.65979097,676.16,675.71,1.786]
[1752180663650,1.65979097,676.15,675.71,1.786]
[1752180663953,1.65979097,676.12,675.71,1.786]
[1752180664157,1.65979097,676.1,675.71,1.786]
[1752180664352,1.65979097,676.11,675.71,1.786]
[1752180664557,1.65979097,676.09,675.71,1.786]
[1752180665655,1.65979097,676.07,675.71,1.786]
[1752180666259,1.65979097,676.06,675.71,1.786]
[1752180667259,1.65979097,676.02,675.71,1.786]
[1752180667457,1.65979097,676.01,675.71,1.786]
[1752180668161,1.65979097,676.0,675.71,1.786]
[1752180668862,1.65979097,676.0,675.53,0.25742882]
[1752180670259,1.65979097,675.99,675.53,0.25742882]
[1752180671162,1.65979097,675.97,675.54,1.742]
[1752180671359,1.65979097,675.98,675.54,1.742]
[1752180672259,1.65979097,675.97,675.54,1.742]
[1752180672763,1.65979097,675.98,675.54,1.742]
[1752180674161,2.20656748,676.1,675.54,1.742]
[1752180674366,1.65275948,675.97,675.54,1.742]
[1752180674565,1.65275948,675.96,675.54,1.742]
[1752180675163,1.65275948,675.95,675.54,1.742]
[1752180675367,1.65275948,675.98,675.54,1.742]
[1752180682870,1.65275948,675.95,675.54,1.742]
[1752180685074,5.5331798,676.8,675.54,1.742]
[1752180685075,1.65275948,675.94,675.54,1.742]
[1752180686670,1.65275948,675.95,675.54,1.742]
[1752180688672,1.65275948,675.96,675.54,1.742]
[1752180689175,1.65275948,675.95,675.54,1.742]
[1752180689372,1.65275948,675.96,675.54,1.742]
[1752180690474,1.65275948,675.95,675.54,1.742]
[1752180691478,1.65275948,675.94,675.54,1.742]
[1752180692179,1.65275948,676.0,675.54,1.742]
[1752180693082,1.65275948,676.0,675.53,0.25742882]
[1752180693385,1.65275948,676.06,675.53,0.25742882]
[1752180693581,1.65275948,676.03,675.53,0.25742882]
[1752180693785,1.65275948,676.01,675.53,0.25742882]
[1752180694483,1.65275948,675.98,675.53,0.25742882]
[1752180694688,1.65275948,676.05,675.53,0.25742882]
[1752180695990,1.65275948,676.05,675.54,2.088]
[1752180698293,1.65275948,676.04,675.54,2.088]
[1752180699990,1.65275948,676.06,675.54,2.088]
[1752180700492,1.65275948,676.08,675.54,2.088]
[1752180700691,1.65275948,676.09,675.54,2.088]
[1752180701190,1.65275948,676.13,675.54,2.088]
[1752180701496,1.65275948,676.14,675.54,2.088]
[1752180701695,1.65275948,676.15,675.54,2.088]
[1752180702199,1.65275948,676.17,675.54,2.088]
[1752180702394,1.65275948,676.18,675.54,2.088]
[1752180702598,1.65275948,676.19,675.54,2.088]
[1752180702793,1.65275948,676.21,675.54,2.088]
[1752180703193,1.65275948,676.26,675.54,2.088]
[1752180707400,1.65275948,676.27,675.54,2.088]
[1752180708202,1.65275948,676.26,675.54,2.088]
[1752180708401,1.65275948,676.27,675.54,2.088]
[1752180710502,1.65275948,676.25,675.54,2.088]
[1752180710702,1.65275948,676.3,675.54,2.088]
[1752180711197,1.65275948,676.31,675.54,2.088]
[1752180712101,1.65275948,676.3,675.54,2.088]
[1752180712402,1.65275948,676.26,675.56,1.6581576]
[1752180712598,1.65275948,676.25,675.56,1.6581576]
[1752180713401,1.65275948,676.26,675.56,1.6581576]
[1752180714906,1.65275948,676.27,675.56,1.6581576]
[1752180715406,1.65275948,676.27,675.55,1.6581576]
[1752180716405,1.65275948,676.28,675.55,1.6581576]
[1752180717410,1.65275948,676.28,675.54,3.7461576]
[1752180717910,1.65275948,676.27,675.55,1.6581576]
[1752180719112,1.65275948,676.28,675.55,1.6581576]
[1752180720508,1.65275948,676.27,675.55,1.6581576]
[1752180721012,1.65275948,676.3,675.54,2.088]
[1752180722207,1.65275948,676.29,675.54,2.088]
[1752180722411,1.65275948,676.3,675.54,2.088]
[1752180727216,1.65275948,676.31,675.54,2.088]
[1752180730425,1.65275948,676.33,675.54,2.088]
[1752180730620,1.65275948,676.34,675.54,2.088]
[1752180730823,1.65275948,676.33,675.6,1.6581576]
[1752180731122,1.65275948,676.4,675.58,1.6581576]
[1752180731319,1.65275948,676.44,675.61,1.6581576]
[1752180731522,2.20656748,676.6,675.6,1.6581576]
[1752180731523,1.65275948,676.43,675.6,1.6581576]
[1752180731723,1.65275948,676.51,675.68,1.6581576]
[1752180732319,1.65275948,676.51,675.66,1.6581576]
[1752180733224,1.65275948,676.52,675.65,1.6581576]
[1752180735427,1.65275948,676.53,675.64,1.6581576]
[1752180736422,1.65275948,676.53,675.63,1.6581576]
[1752180737326,1.65275948,676.54,675.63,1.6581576]
[1752180738024,1.65275948,676.53,675.63,1.6581576]
[1752180738328,1.65275948,676.54,675.63,1.6581576]
[1752180741023,1.65275948,676.5,675.68,1.6581576]
[1752180741425,1.65275948,676.51,675.68,1.6581576]
[1752180741928,1.65275948,676.5,675.69,1.6581576]
[1752180742426,1.65275948,676.5,675.68,1.6581576]
[1752180743324,1.65275948,676.5,675.69,1.6581576]
[1752180744027,1.65275948,676.6,675.53,1.91558642]
[1752180744227,1.65275948,676.51,675.53,0.25742882]
[1752180744430,1.65275948,676.5,675.53,0.25742882]
[1752180745426,1.65275948,676.49,675.53,0.25742882]
[1752180746226,1.65275948,676.51,675.53,0.25742882]
[1752180746531,0.25736219,676.61,675.53,0.25742882]
[1752180746532,1.65275948,676.56,675.53,0.25742882]
[1752180747227,1.65275948,676.55,675.54,2.063]
[1752180748328,1.65275948,676.5,675.55,1.6581576]
[1752180748526,1.65275948,676.5,675.57,1.6581576]
[1752180748725,1.65275948,676.49,675.57,1.6581576]
[1752180749341,1.65275948,676.48,675.57,1.6581576]
[1752180750328,1.65275948,676.48,675.58,1.6581576]
[1752180751333,1.65275948,676.47,675.58,1.6581576]
[1752180752233,1.65275948,676.47,675.59,1.6581576]
[1752180753435,1.65275948,676.46,675.6,1.6581576]
[1752180754134,1.65275948,676.46,675.61,1.6581576]
[1752180754332,1.65275948,676.45,675.61,1.6581576]
[1752180755236,1.65275948,676.45,675.62,1.6581576]
[1752180756336,1.65275948,676.44,675.62,1.6581576]
[1752180757335,1.65275948,676.44,675.63,1.6581576]
[1752180757734,1.65275948,676.43,675.63,1.6581576]
[1752180757937,1.65275948,676.43,675.64,1.6581576]
[1752180758340,1.65275948,676.39,675.71,1.6581576]
[1752180758538,1.65275948,676.38,675.71,1.6581576]
[1752180759437,1.65275948,676.38,675.72,1.6581576]
[1752180761344,1.65275948,676.37,675.73,1.6581576]
[1752180762444,1.65275948,676.37,675.74,1.6581576]
[1752180763243,1.65275948,676.36,675.74,1.6581576]
[1752180766056,1.65275948,676.36,675.75,1.6581576]
[1752180766552,1.65275948,676.4,675.68,1.6581576]
[1752180767457,1.65275948,676.38,675.71,1.6581576]
[1752180768060,1.65275948,676.37,675.73,1.6581576]
[1752180768260,1.65275948,676.36,675.74,1.6581576]
[1752180768960,1.65275948,676.36,675.73,1.6581576]
[1752180769357,1.65275948,676.36,675.74,1.6581576]
[1752180771261,1.65275948,676.35,675.74,1.6581576]
[1752180773263,1.65275948,676.35,675.75,1.6581576]
[1752180774263,1.65275948,676.34,675.76,1.6581576]
[1752180774464,1.65275948,676.35,675.75,1.6581576]
[1752180774760,1.65275948,676.34,675.76,1.6581576]
[1752180775063,1.65275948,676.33,675.77,1.6581576]
[1752180775263,1.65275948,676.33,675.65,2.20535971]
[1752180775264,1.65275948,676.33,675.78,1.6581576]
[1752180775764,1.65275948,676.32,675.79,1.6581576]
[1752180776962,1.65275948,676.34,675.81,1.6581576]
[1752180778063,1.65275948,676.34,675.69,2.20535971]
[1752180778064,1.65275948,676.34,675.8,1.6581576]
[1752180780262,1.65275948,676.34,675.79,1.6581576]
[1752180780465,1.65275948,676.35,675.8,1.6581576]
[1752180781262,1.65275948,676.35,675.79,1.6581576]
[1752180781763,1.65275948,676.39,675.83,1.6581576]
[1752180782767,1.65275948,676.44,675.88,1.6581576]
[1752180783263,1.65275948,676.46,675.89,2.207]
[1752180786267,1.65275948,676.45,675.89,2.207]
[1752180787264,1.65275948,676.46,675.89,2.207]
[1752180787567,1.65275948,676.45,675.89,2.207]
[1752180789466,1.65275948,676.44,675.89,2.207]
[1752180790269,1.65275948,676.44,675.89,3.8651576]
[1752180791971,1.65275948,676.44,675.89,2.207]
[1752180792268,1.65275948,676.45,675.89,2.207]
[1752180793170,1.65275948,676.42,675.91,1.6581576]
[1752180793371,3.31990788,676.68,675.91,1.6581576]
[1752180793372,1.65275948,676.43,675.91,1.6581576]
[1752180794271,1.65275948,676.43,675.9,1.6581576]
[1752180795766,1.65275948,676.43,675.89,3.8651576]
[1752180796773,1.65275948,676.44,675.89,3.8651576]
[1752180798174,1.65275948,676.43,675.89,3.8651576]
[1752180798374,1.65275948,676.44,675.89,3.8651576]
[1752180800276,1.65275948,676.49,675.89,2.207]
[1752180802272,1.65275948,676.49,675.81,1.6581576]
[1752180803371,1.65409742,676.49,675.81,1.65807646]
[1752180805179,2.20656748,676.66,675.64,2.20535971]
[1752180805379,1.65412931,676.49,675.81,1.65810843]
[1752180806276,1.65412931,676.48,675.82,1.65810843]
[1752180808084,1.65412931,676.49,675.81,1.65810843]
[1752180808581,1.65412931,676.49,675.8,1.65810843]
[1752180810184,1.65412931,676.45,675.86,1.65810843]
[1752180811881,1.65412931,676.45,675.85,1.65810843]
[1752180814286,1.65412931,676.45,675.86,1.65810843]
[1752180817891,1.65412931,676.43,675.88,1.65810843]
[1752180821695,1.65412931,676.42,675.9,1.65810843]
[1752180826600,1.65412931,676.42,675.91,1.65810843]
[1752180827196,1.65412931,676.44,675.88,1.65810843]
[1752180827399,1.65412931,676.43,675.88,1.65810843]
[1752180827600,1.65412931,676.44,675.88,1.65810843]
[1752180828401,1.65412931,676.43,675.88,1.65810843]
[1752180829502,1.65412931,676.43,675.89,1.65810843]
[1752180829702,1.65412931,676.42,675.9,1.65810843]
[1752180830196,1.65412931,676.42,675.91,1.65810843]
[1752180830397,1.65412931,676.41,675.91,1.65810843]
[1752180832197,1.65412931,676.41,675.92,1.65810843]
[1752180833298,1.65412931,676.4,675.92,1.65810843]
[1752180833503,1.65412931,676.48,675.81,1.65810843]
[1752180833702,1.65412931,676.52,675.77,1.65810843]
[1752180834100,1.65412931,676.44,675.83,1.65810843]
[1752180834403,1.65412931,676.44,675.9,1.65810843]
[1752180834801,1.65412931,676.45,675.89,1.65810843]
[1752180835399,1.65412931,676.48,675.93,1.65810843]
[1752180835603,1.65412931,676.54,675.99,1.65810843]
[1752180835900,1.65412931,676.56,676.0,0.99091779]
[1752180836103,1.65412931,676.56,676.01,0.99091779]
[1752180836304,1.65412931,676.62,676.05,1.65810843]
[1752180836503,1.65412931,676.62,676.06,0.99091779]
[1752180836707,1.65412931,676.62,676.07,0.99091779]
[1752180836907,1.65412931,676.62,676.08,0.99091779]
[1752180837207,1.65412931,676.63,676.09,0.99091779]
[1752180837504,1.65412931,676.62,676.1,0.99091779]
[1752180837706,1.65412931,676.62,676.11,0.99091779]
[1752180837903,1.65412931,676.62,676.12,0.99091779]
[1752180838106,1.65412931,676.62,676.13,0.99091779]
[1752180838402,1.65412931,676.63,676.14,0.99091779]
[1752180838608,1.65412931,676.62,676.15,0.99091779]
[1752180838903,1.65412931,676.62,676.16,0.99091779]
[1752180839102,1.65412931,676.62,676.17,0.99091779]
[1752180839308,1.65412931,676.63,676.18,0.99091779]
[1752180839507,1.65412931,676.63,676.17,2.08]
[1752180839508,1.65412931,676.69,676.19,0.99091779]
[1752180839806,1.65412931,676.69,676.2,0.99091779]
[1752180840003,1.65412931,676.69,676.21,0.99091779]
[1752180840204,1.65412931,676.68,676.22,0.99091779]
[1752180840506,2.20656748,676.84,676.23,0.99091779]
[1752180840807,1.65696103,676.68,676.24,0.99091779]
[1752180841008,1.65696103,676.68,676.25,0.99091779]
[1752180841201,1.65696103,676.68,676.26,0.99091779]
[1752180841402,1.65696103,676.68,676.27,0.99091779]
[1752180841606,1.65696103,676.69,676.28,0.99091779]
[1752180841906,1.65696103,676.69,676.29,0.99091779]
[1752180842206,1.65696103,676.69,676.3,0.99091779]
[1752180842408,1.65696103,676.7,676.31,0.99091779]
[1752180842606,1.65696103,676.7,676.32,0.99091779]
[1752180842806,1.65696103,676.7,676.33,0.99091779]
[1752180843006,1.65696103,676.7,676.34,0.99091779]
[1752180843308,1.65696103,676.71,676.35,0.99091779]
[1752180843507,1.65696103,676.71,676.36,0.99091779]
[1752180843710,1.65696103,676.71,676.37,0.99091779]
[1752180843906,1.65696103,676.71,676.38,0.99091779]
[1752180844105,1.65696103,676.7,676.39,0.99091779]
[1752180844307,1.65696103,676.71,676.4,0.99091779]
[1752180844509,1.65696103,676.71,676.41,0.99091779]
[1752180844809,1.65696103,676.71,676.42,0.99091779]
[1752180845007,1.65696103,676.72,676.43,0.99091779]
[1752180845212,1.65696103,676.72,676.44,0.99091779]
[1752180845512,1.65696103,676.73,676.45,0.99091779]
[1752180845713,1.65696103,676.73,676.46,0.99091779]
[1752180846009,1.65696103,676.73,676.47,0.99091779]
[1752180846210,1.65696103,676.73,676.48,0.99091779]
[1752180846409,1.65696103,676.74,676.49,0.99091779]
[1752180846613,1.65696103,676.74,676.5,0.99091779]
[1752180846814,1.65696103,676.74,676.51,0.99091779]
[1752180847010,1.65696103,676.74,676.52,0.99091779]
[1752180847211,1.65696103,676.74,676.53,0.99091779]
[1752180847417,1.65696103,676.75,676.54,0.99091779]
[1752180847615,1.65696103,676.75,676.55,0.99091779]
[1752180847813,1.65696103,676.75,676.56,0.99091779]
[1752180848013,1.65696103,676.75,676.57,0.99091779]
[1752180848216,1.65696103,676.75,676.58,0.99091779]
[1752180848417,1.65696103,676.74,676.59,0.99091779]
[1752180848711,1.65696103,676.74,676.6,0.99091779]
[1752180848916,1.65696103,676.74,676.17,2.08]
[1752180848917,1.65696103,676.74,676.61,0.99091779]
[1752180849115,1.65696103,676.74,676.62,0.99091779]
[1752180849318,1.65696103,676.74,676.63,0.98842179]
[1752180849613,1.65696103,676.74,676.64,0.98842179]
[1752180849818,1.65696103,676.79,676.65,0.98842179]
[1752180850017,1.65696103,676.79,676.66,0.98842179]
[1752180850217,1.65696103,676.79,676.67,0.98842179]
[1752180850416,1.65696103,676.79,676.68,0.98842179]
[1752180850614,1.65696103,676.79,676.69,0.98842179]
[1752180850814,1.65696103,676.79,676.7,0.98842179]
[1752180851013,1.65696103,676.79,676.71,0.98842179]
[1752180851213,1.65696103,676.79,676.72,0.98842179]
[1752180851416,1.65696103,676.8,676.73,0.98842179]
[1752180851617,1.65696103,676.8,676.74,0.98842179]
[1752180851816,1.65696103,676.8,676.75,0.98842179]
[1752180852015,1.65696103,676.8,676.17,2.08]
[1752180852318,1.65696103,676.8,676.18,0.98815038]
[1752180852617,1.65696103,676.8,676.19,0.98815038]
[1752180852818,1.65696103,676.8,676.2,0.98815038]
[1752180853016,1.65696103,676.8,676.21,0.98815038]
[1752180853219,1.65696103,676.8,676.22,0.98815038]
[1752180853419,1.65696103,676.81,676.23,0.98815038]
[1752180853616,1.65696103,676.81,676.24,0.98815038]
[1752180853815,1.65696103,676.81,676.25,0.98815038]
[1752180854017,1.65696103,676.8,676.26,0.98815038]
[1752180854216,1.65696103,676.8,676.27,0.98815038]
[1752180854417,1.65696103,676.81,676.28,0.98815038]
[1752180854615,1.65696103,676.81,676.29,0.98815038]
[1752180854920,1.65696103,676.81,676.3,0.98815038]